{"text_format":"1","workbook":"xlsx","n_sheets":2,"sheets":["様式1,2_チェックリスト（記入・提出用）","提案者記入例（委託研究）"],"not_rendered":{"charts":0,"images":0,"macros":1,"external_links":0,"defined_names":149,"comments":0,"pivot_tables":0},"unopened":[],"bounds":{"document_bytes":16777216,"sheet_cells":100000,"rows_first":2000,"rows_last":500,"rows_between":2000,"halvings":0,"cell_chars":16384,"cell_head_chars":4096},"cells_cut":0,"cells_raw":0,"read":"whole","date_system":"1900"}

{"sheet":"様式1,2_チェックリスト（記入・提出用）","index":0,"n_rows":148,"n_cols":13,"rows_kept":148,"cut":false,"hidden":false,"merged":[[36,3,36,9],[40,3,40,9],[40,1,40,2],[140,1,140,10],[141,1,141,10],[142,1,142,10],[143,1,143,10],[144,1,144,10],[145,1,145,3],[134,1,134,10],[135,1,135,10],[136,1,136,10],[137,1,137,10],[138,1,138,10],[139,1,139,10],[128,1,128,10],[129,1,129,10],[130,1,130,10],[131,1,131,10],[132,1,132,10],[133,1,133,10],[122,1,122,10],[123,1,123,10],[124,1,124,10],[125,1,125,10],[126,1,126,10],[127,1,127,10],[116,1,116,10],[117,1,117,10],[118,1,118,10],[119,1,119,10],[120,1,120,10],[121,1,121,10],[110,1,110,10],[111,1,111,10],[112,1,112,10],[113,1,113,10],[114,1,114,10],[115,1,115,10],[103,1,103,10],[104,1,104,10],[105,1,105,10],[107,1,107,10],[108,1,108,10],[109,1,109,10],[95,12,95,19],[98,1,98,3],[99,1,99,10],[100,1,100,10],[101,1,101,10],[102,1,102,10],[91,1,91,10],[92,1,92,9],[93,1,93,2],[93,3,93,4],[93,5,93,10],[95,1,95,3],[95,4,95,10],[87,1,87,10],[88,1,88,9],[89,1,89,2],[89,4,89,7],[89,9,89,10],[83,1,83,3],[83,4,83,5],[83,7,83,8],[83,9,83,10],[83,12,85,19],[84,1,84,9],[74,1,79,2],[74,3,74,9],[75,3,75,4],[75,5,75,10],[75,12,76,19],[76,3,76,4],[76,5,76,10],[77,3,77,4],[77,5,77,10],[78,3,78,9],[85,1,85,3],[85,4,85,10],[69,1,69,2],[69,3,69,9],[70,12,73,19],[71,1,71,10],[72,1,72,2],[72,3,72,9],[73,1,73,10],[79,3,79,9],[81,1,81,10],[81,12,82,19],[82,1,82,9],[63,1,63,10],[64,1,66,2],[64,3,64,9],[64,12,64,19],[65,3,65,9],[65,12,66,19],[66,3,66,9],[67,1,67,10],[68,1,68,10],[58,12,58,19],[59,1,59,10],[60,1,60,10],[61,1,62,2],[61,3,61,4],[61,5,61,10],[61,12,61,19],[62,3,62,4],[62,5,62,10],[62,12,62,19],[53,1,53,9],[54,1,58,2],[54,3,54,4],[54,5,54,10],[55,3,55,4],[55,5,55,10],[56,3,56,4],[56,5,56,10],[57,3,57,4],[57,5,57,10],[58,3,58,4],[58,5,58,10],[51,12,51,19],[52,3,52,4],[52,5,52,10],[52,12,52,19],[48,12,48,19],[49,1,49,2],[49,3,49,4],[49,5,49,10],[50,1,50,2],[50,3,50,9],[46,1,46,10],[47,1,47,10],[48,1,48,2],[48,3,48,9],[41,1,41,2],[41,3,41,4],[41,5,41,10],[51,1,52,2],[51,3,51,4],[51,5,51,10],[33,1,33,2],[33,3,33,4],[33,5,33,10],[33,12,35,19],[34,1,34,9],[35,1,37,2],[35,3,35,4],[41,12,41,19],[42,1,45,2],[42,3,42,4],[42,5,42,10],[43,3,43,4],[43,5,43,10],[35,6,35,7],[35,8,35,10],[37,3,37,9],[37,12,39,19],[38,1,39,2],[38,3,38,4],[38,5,38,10],[39,3,39,9],[44,3,44,4],[44,5,44,10],[45,3,45,9],[26,1,26,3],[26,4,26,10],[26,12,26,19],[27,1,27,10],[27,12,27,19],[29,1,29,10],[29,12,31,19],[30,1,30,9],[31,1,32,2],[31,3,31,9],[32,3,32,4],[32,5,32,10],[32,12,32,19],[24,1,24,3],[24,4,24,10],[24,12,24,19],[25,1,25,3],[25,4,25,5],[25,6,25,10],[20,1,22,2],[20,3,21,3],[20,4,21,10],[21,12,21,19],[22,4,22,10],[22,12,22,19],[16,7,16,10],[17,1,19,2],[17,4,17,10],[17,12,17,19],[18,4,18,10],[19,4,19,10],[13,3,13,10],[14,1,14,3],[14,4,14,10],[14,12,14,19],[15,1,16,3],[15,5,15,6],[15,7,15,10],[15,11,16,11],[15,12,16,19],[16,5,16,6],[10,1,10,3],[10,4,10,6],[10,7,10,10],[10,12,10,19],[12,2,12,3],[12,4,12,10],[12,12,12,19],[6,12,6,19],[7,6,7,10],[7,12,7,19],[8,1,8,3],[8,4,8,10],[8,12,9,19],[9,1,9,10],[0,3,1,8],[2,1,2,5],[4,1,7,3],[4,4,5,4],[4,6,4,10],[4,12,4,19],[5,6,5,10],[5,12,5,19],[6,4,7,4],[6,6,6,10]]}
[null,{"$f":"IF(nYoushiki=1,\"様式1\",IF(nYoushiki=2,\"様式2\",\"\"))","v":"様式1"},null,"パーソナルデータ取扱チェックリスト",null,null,null,null,null,"　　　　Rev.9.5.25(2020.2.4)"]
[]
[null,"研究計画中(委員会にて様式1で審議する段階。プロセス1)"]
[]
[null,{"$f":"IF(nKenShu=5,\"NICT 受付・確認\",\"確認・承認\")","v":"確認・承認"},null,null,{"$f":"IF(nKenShu=5,\"研究所長等\",\"取扱責任者\n(研究所長等)\")","v":"取扱責任者\n(研究所長等)"},"氏名",{"$f":"IF(D14=\"委託研究（革新的情報通信技術研究開発委託研究）\",\"\",\"〇〇　〇〇 \")","v":""},null,null,null,null,"<--",{"$f":"IF(nKenShu=2,\"記載は不要です\",IF(nKenShu=5,\"NICTにて記載します\",\"様式提出ごとに確認・承認が必要です\"))","v":"記載は不要です"}]
[null,null,null,null,null,"確認日（年月日）",{"$f":"IF(D14=\"委託研究（革新的情報通信技術研究開発委託研究）\",\"\",\"〇〇〇〇年〇〇月〇〇日\")","v":""},null,null,null,null,"<--",{"$f":"IF(nKenShu=2,\"記載は不要です\",IF(nKenShu=5,\"NICTにて記載します\",\"様式提出ごとに確認・承認が必要です\"))","v":"記載は不要です"}]
[null,null,null,null,{"$f":"IF(nKenShu=5,\"研究室長等\",\"取扱管理者\n（研究室長）\")","v":"取扱管理者\n（研究室長）"},"氏名",{"$f":"IF(D14=\"委託研究（革新的情報通信技術研究開発委託研究）\",\"\",\"〇〇　〇〇 \")","v":""},null,null,null,null,"<--",{"$f":"IF(nKenShu=2,\"記載は不要です\",IF(nKenShu=5,\"NICTにて記載します\",\"様式提出ごとに確認・承認が必要です\"))","v":"記載は不要です"}]
[null,null,null,null,null,"確認日（年月日）",{"$f":"IF(D14=\"委託研究（革新的情報通信技術研究開発委託研究）\",\"\",\"〇〇〇〇年〇〇月〇〇日 \")","v":""},null,null,null,null,"<--",{"$f":"IF(nKenShu=2,\"記載は不要です\",IF(nKenShu=5,\"NICTにて記載します\",\"様式提出ごとに確認・承認が必要です\"))","v":"記載は不要です"}]
[null,"研究開発課題ID",null,null,null,null,null,null,null,null,null,{"$f":"IF(nYoushiki=1,\"<--\",IF(nYoushiki=2,\"<--\",IF(nKenShu=5,\"<--\",\"\")))","v":"<--"},{"$f":"IF(nYoushiki=1,\"\n記載は不要です\",IF(nYoushiki=2,comtKenKaiKadaiId0,\"\"))","v":"\n記載は不要です"}]
[null,"【記入上の注意事項】\n＊提出の際はＥｘｃｅｌのまま提出してください。"]
[null,"作成日（年月日）",null,null,"◯◯◯◯年◯◯月◯◯日",null,null,{"$f":"$E$11","v":"◯◯◯◯年◯◯月◯◯日"},null,null,null,"<--","様式提出ごとに作成日を記載してください"]
[]
[null,null,{"$f":"IF(nKenShu=5,\"研究プロジェクトテーマ名\",\"研究開発課題名\")","v":"研究開発課題名"},null,null,null,null,null,null,null,null,{"$f":"IF(nKenShu=2,IF(nYoushiki=1,\"<--\",IF(nYoushiki=2,\"<--\",\"\")),IF(nKenShu=5,IF(nYoushiki=1,\"<--\",IF(nYoushiki=2,\"<--\",\"\")),IF(nYoushiki=2,\"<--\",\"\")))","v":"<--"},{"$f":"IF(nKenShu=2,IF(nYoushiki=1,comtKenKaiKadaiMei0,IF(nYoushiki=2,comtKenKaiKadaiMei1,\"\")),IF(nKenShu=5,IF(nYoushiki=1,comtKenKaiKadaiMei3,IF(nYoushiki=2,comtKenKaiKadaiMei4,\"\")),IF(nYoushiki=2,comtKenKaiKadaiMei2,\"\")))","v":"課題名、課題番号または個別課題番号、提案課題を記載ください。\n　　　・課題名：＊＊＊ネットワーク基盤の研究開発\n　　　・課題番号または個別課題番号：195／195A\n　　　・提案課題：＊＊＊の研究開発"}]
[null,"研究種別　",null,"委託研究（革新的情報通信技術研究開発委託研究）"]
[null,{"$f":"IF(nKenShu=0,\"\",IF(nKenShu=1,\"\",IF(nKenShu=2,IF(nYoushiki=1,\"提案者\",\"受託者\"),IF(nKenShu=3,\"受託元\",IF(nKenShu=4,\"共同研究先\",\"テストベッド利用機関\")))))","v":"提案者"},null,null,null,null,null,null,null,null,null,{"$f":"IF(nKenShu=1,\"<--\",\" \")","v":" "},{"$f":"IF(nKenShu=1,\"記載は不要です\",\" \")","v":" "}]
[null,"研究開発期間（年月日）",null,null,"開始","◯◯◯◯年◯◯月◯◯日",null,{"$f":"F16","v":"◯◯◯◯年◯◯月◯◯日"},null,null,null,{"$f":"IF(nKenShu=2,IF(nYoushiki=1,\"<--\",IF(nYoushiki=2,\"<--\",\"\")),IF(nKenShu=5,\"<--\",\"\"))","v":"<--"},{"$f":"IF(nKenShu=2,IF(nYoushiki=1,comtKenKaiKikan0,IF(nYoushiki=2,comtKenKaiKikan1,\"\")),IF(nKenShu=5,comtKenKaiKikan2,\"\"))","v":"開始には文字列で「委託研究契約日」、終了（予定）には研究終了を予定している日にちを西暦で記入してください。和歴は自動入力されま\nす。"}]
[null,null,null,null,"終了（予定）","◯◯◯◯年◯◯月◯◯日",null,{"$f":"F17","v":"◯◯◯◯年◯◯月◯◯日"}]
[null,"取扱担当者",null,"所属",null,null,null,null,null,null,null,{"$f":"IF(nKenShu=2,\"\",IF(nKenShu=3, \"<--\",IF(nKenShu=5, \"<--\",\"\")))","v":""},{"$f":"IF(nKenShu=2,comtToriTantou0,IF(nKenShu=3, comtToriTantou1,IF(nKenShu=5, comtToriTantou2,\"\")))","v":"　"}]
[null,null,null,"氏名"]
[null,null,null,"ﾒｰﾙｱﾄﾞﾚｽ"]
[null,"研究の概要\n\n外部有識者による審議で本リストを用います。予備知識がなくても研究内容を俯瞰、理解できるように、専門用語や略語を使わないでください。",null,"研究目的\n/研究計画・方法\n\n３００字程度で記載してください。","\n\n"]
[null,null,null,null,null,null,null,null,null,null,null,{"$f":"IF(nKenShu=2,\"<--\",IF(nKenShu=5,\"<--\",\"\"))","v":"<--"},{"$f":"IF(nKenShu=2,comtKenMokuteki0,IF(nKenShu=5,comtKenMokuteki1,\"\"))","v":"委託研究計画書における研究概要文を流用いただいても結構です。"}]
[null,null,null,"パーソナルデータを取り扱う目的及び必要性",null,null,null,null,null,null,null,"<--",{"$f":"comtPdToriMokuteki0","v":"上記概要（目的、計画、方法）の中で、パーソナルデータを取り扱うことで、研究全体の中で、どのような成果が期待できるか、パーソナルデータを取り扱う目的と必要性を、できる限り具体的に記載ください。"}]
[]
[null,"取り扱うパーソナルデータ\n（多数の場合は別添可）",null,null,null,null,null,null,null,null,null,"<--","取り扱うパーソナルデータを具体的に記載ください。\n下記（参考）を参照いただき、パーソナルデータを列挙ください。"]
[null,"取得件数　 「総データ数＝人数×上に記したデータ種類」の場合、人数に相当する値を記載。それ以外の場合は備考欄に説明を記載してください。",null,null,null,null,"件"]
[null,"取得方法\n",null,null,null,null,null,null,null,null,null,"<--","パーソナルデータの取得方法（取得主体、手段、場所、など）を具体的かつ簡潔に記載ください。\n（例）\n　・スマホアプリケーションによるMACアドレス／GPS位置情報の取得\n　・***カメラ（撮影原理）による人流映像測定\n　・ドローンを用いた*m3程度の農産物情報の取得\n　・***センサ－（センサー原理）による高齢者生体情報の取得\n　・アンケート"]
[null,"（参考）プライバシーを侵害する可能性があるパーソナルデータ例\n\nアドレス情報（IPアドレス、MACアドレス、位置情報（GPS以外の電波等を利用して得た情報を含む）、他）、施設・設備利用ログデータ（地域に展開した社会実証テストベッド利用、他）、生体情報（音声情報、脳活動情報、MRI/内視鏡/CT等で取得した映像・画像、等）、生理・心理計測データ（刺激に対する反応、等）、人体に対するレーザーレーダ・レーダ断面積等の測定データ、映像データ（ドローン搭載カメラを含む）、アンケート結果、カルテ・処方箋、ソーシャルネットワークサービスに記載された情報、プローブカーによって収集された各種データ、等\n",null,null,null,null,null,null,null,null,null,null,"（重要）\n２ページ目以降の各項目において×を選択した場合、末尾の備考欄に、その理由を必ず記載してください。\n\n"]
[]
[null,"データの取得",null,null,null,null,null,null,null,null,null,null,{"$f":"comtDataShutoku0","v":"本人から同意を取得する（○）か否（×）かを選択してください。\n　・同意書は、データの利用目的を適切に限定することが必要です。\n　・同意書は、取得するパーソナルデータを使用するすべての研究機関が使用し、論文発表を含む学術目的である旨の同意を取得してください。\n　・取得するパーソナルデータ（加工、分析データを含む）の第３者提供を予定する場合、その旨の同意を取得してください。\n　・否（×）の場合、備考欄に理由を記載してください。その際、利用目的や処理内容などについて本人に事前告知や通知をする方法と内容を、できるだけ具体的に記載してください。"}]
[null,"　データの取得：　１．本研究でデータを取得する　２．既にあるデータを活用するのみで新たな取得はしない",null,null,null,null,null,null,null,null,"選択してください　"]
[null,{"$f":"IF(K31=\"１．本研究でデータを取得する\",\"記載してください\",IF(K31=\"２．既にあるデータを活用するのみで新たな取得はしない\",\"記載は不要です\",\"\"))","v":""},null,"取得するデータ、データの取得方法、利用目的、第三者提供の可否等について、本人（データ化される人）から同意を取得する。　（ただし、本人が自らSNSやブログ等を通してインターネット上に発信した情報を取得する場合を除く。[注]この場合、著作権の観点でも注意してください)",null,null,null,null,null,null,"選択してください　","<--"]
[null,null,null,"取得予定時期\n例：○○○○年○月頃までに取得予定",null,null,null,null,null,null,null,"<--","おおよそ決まっている場合は記入してください。決まってない場合は未定と記入してください。"]
[null,"記載してください",null,"データ取得者（取得主体、データを取得する機関）",null,null,null,null,null,null,null,{"$f":"IF(nKenShu=5,\"<--\",\"<--\")","v":"<--"},{"$f":"IF(nKenShu=5,comtDataShutokusha1,comtDataShutokusha0)","v":"・取得主体を全て記載ください。Ａ社が取得したものを共同研究先のB社に提供する場合はA社を、A社とB社が共同で取得する場合にはA社とB社を記載してください。既にあるデータの場合、そのデータを取得した機関を記載してください。\n　　例1： NICT, A社, B社。　例2： NICT。\n・C社（例えばNICT）がD社に業務委託してデータを取得する場合には、C社を記載して業務委託先も記載してください。\n　　例3： C社（取得作業はC社からD社に業務委託する）。"}]
[null,"オプトイン／オプトアウト：　１．オプトイン　２．オプトアウト　３．オプトイン、オプトアウトの両方　　×（両方ともしない）",null,null,null,null,null,null,null,null,"選択して下さい"]
[null,{"$f":"IF(K35=\"選択して下さい\",\"\",IF(OR(K35=\"１．オプトイン\",K35=\"３．両方\"),\"記載してください\",\"記載は不要です\"))","v":""},null,"オプトイン（同意）の方法",null,"選択してください",{"$f":"IF(OR(F36=\"選択してください\",F36=\"書面\",F36=\"Web\",F36=\"アプリ\"),\"\",\"取得手段を記載して下さい\")","v":""}]
[null,null,null,"同意取得における説明において、データの利用目的や第３者提供について認識・理解しやすい形で伝えているか",null,null,null,null,null,null,"選択して下さい"]
[null,null,null,"未成年からデータを取得する場合は、保護者の同意を取得する\n　　１．未成年からデータを取得しない　　２．保護者の同意を得て未成年からデータを取得する　　×（保護者の同意を得ずに未成年からデータを取得する）",null,null,null,null,null,null,"選択して下さい",null,"・オプトアウトを準備する場合、その手段[*1]や内容[*2]を具体的に記載してください。\n　[*1]例えば、書面、公示パネル\n　[*2]例えば、要請による取得データの削除や、第３者提供の拒否\n・オプトアウトを受け付けるためには、その方のデータが特定できるように個人情報を持ち続けることになるため、データの保管には注意する必要があります。この点も考慮して、オプトアウトを受け付けるかどうか判断してください。"]
[null,{"$f":"IF(K35=\"選択して下さい\",\"\",IF(OR(K35=\"２．オプトアウト\",K35=\"３．両方\"),\"記載してください\",\"記載は不要です\"))","v":""},null,"オプトアウトの方法",null,null,null,null,null,null,null,"<--"]
[null,null,null,"オプトアウトは、認識・理解しやすい形で通知・公表されているか",null,null,null,null,null,null,"選択して下さい"]
[null,{"$f":"IF(K31=\"１．本研究でデータを取得する\",\" \",IF(K31=\"２．既にあるデータを活用するのみで新たな取得はしない\",\"本項目は記載は不要です\",\"\"))","v":""},null,"　データの取得場所：　１．国内のみ　２．海外も含む（または海外のみ）",null,null,null,null,null,null,"選択して下さい　",null," "]
[null,{"$f":"IF(K31=\"２．既にあるデータを活用するのみで新たな取得はしない\",\"記載は不要です\",IF(K41=\"１．国内のみ\",\"記載してください\",IF(K41=\"２．海外も含む（・・・）\",\"記載してください\",\"\")))","v":""},null,"データを取得する場所",null,"　",null,null,null,null,null,"<--","繁華街やオフィスビルエリア、病院内などが分かるように、なるべく具体的に記載してください。"]
[null,{"$f":"IF(K31=\"２．既にあるデータを活用するのみで新たな取得はしない\",\"記載は不要です\",IF(K41=\"１．国内のみ\",\"記載は不要です\",IF(K41=\"２．海外も含む（・・・）\",\"データ取得に関する項目。記載してください\",\"\")))","v":""},null,"データを取得する国",null,"　"]
[null,null,null,"海外で取得するデータ"]
[null,null,null,"海外で取得する理由／目的"]
[null,null,null,"取得する国での取得ルールに従っている",null,null,null,null,null,null,"選択して下さい"]
[]
[null,"データの管理","データの管理"]
[null,"選択してください",null,"パーソナルデータの移送時には、適切な暗号化処理等を行うなどセキュリティを担保する\n　　１．移送しない　　２．担保しながら移送する　　×（担保せずに移送する）",null,null,null,null,null,null,"選択して下さい","<--","移送時には、暗号化処理など適切なセキュリティを担保することが必要です。"]
[null,{"$f":"IF(K49=\"選択して下さい\",\"\",IF(K49=\"２．担保しながら移送する\",\"記載してください\",\"記載は不要です\"))","v":""},null,"　 暗号化処理などセキュリティの担保方法"]
[null,"選択してください",null,"パーソナルデータの保管時には、取り扱うパーソナルデータにアクセスできる職員を必要最小限としたり、暗号化処理をするなどセキュリティを担保する。\n　　１．保管しない　　２．担保しながら保管する　　×（担保せずに保管する）",null,null,null,null,null,null,"選択して下さい"]
[null,{"$f":"IF(K51=\"選択して下さい\",\"\",IF(K51=\"２．担保しながら保管する\",\"記載してください\",\"記載は不要です\"))","v":""},null,"　パスワードによるアクセス制御や暗号化処理などセキュリティの担保方法",null,null,null,null,null,null,null,"<--","特に機密性が高いと考えるデータ（例：要配慮個人情報）を保管する場合には、暗号化等も検討してください。"]
[null,null,null,"データを保管する機関",null,null,null,null,null,null,null,{"$f":"IF(nKenShu=2,\"<--\",IF(nKenShu=3, \"<--\",IF(nKenShu=4, \"<--\",IF(nKenShu=1, \"<--\",IF(nKenShu=5, \"<--\",\"\")))))","v":"<--"},{"$f":"IF(nKenShu=2,comtDataHokansha0,IF(nKenShu=3, comtDataHokansha1,IF(nKenShu=4,comtDataHokansha2,IF(nKenShu=1, comtDataHokansha3,IF(nKenShu=5, comtDataHokansha4,\"\")))))","v":"全受託者及びNICTのうち、実際に保管する受託者を記入してください。"}]
[null,"海外研究機関・海外設置クラウド等、海外へ/海外からデータの移送は行わない。",null,null,null,null,null,null,null,null,"選択して下さい　"]
[null,{"$f":"IF(K54=\"1．移送あり\",\"海外へ/海外からのデータ移送に関する項目\",IF(K54=\"2．移送なし\",\"記載は不要です\",\"\"))","v":""},null,"移送元の機関"]
[null,null,null,"移送先の機関"]
[null,null,null,"移送するデータ"]
[null,null,null,"移送する理由／目的"]
[null,null,null,"移送方法",null,null,null,null,null,null,null,"<--","ファイル転送システムを利用する場合には、どのようなシステムを利用するのか記載してください。　　例：NICTのシステム、無料のシステム"]
[]
[null,"データの利用"]
[null,"記載してください",null,{"$f":"IF(nKenShu=5,\"実際に利用する機関\",\"実際に利用する機関（データを受け取るだけの機関を含む）\")","v":"実際に利用する機関（データを受け取るだけの機関を含む）"},null,"　",null,null,null,null,null,{"$f":"IF(nKenShu=2,\"<--\",IF(nKenShu=3, \"<--\",IF(nKenShu=4, \"<--\",IF(nKenShu=1, \"<--\",IF(nKenShu=5, \"<--\",\"\")))))","v":"<--"},{"$f":"IF(nKenShu=2,comtDataRiyousha0,IF(nKenShu=3, comtDataRiyousha1,IF(nKenShu=4, comtDataRiyousha2,IF(nKenShu=1, comtDataRiyousha3,IF(nKenShu=5, comtDataRiyousha4,\"\")))))","v":"全受託者及びNICTのうち、実際に利用する受託者（データを受け取るだけの受託者を含む）を記入してください。"}]
[null,null,null,"上記機関が利用するデータ",null,"　",null,null,null,null,null,{"$f":"IF(nKenShu=2,\"<--\",IF(nKenShu=3, \"<--\",IF(nKenShu=4, \"<--\",IF(nKenShu=1, \"\",IF(nKenShu=5, \"<--\",\"\")))))","v":"<--"},{"$f":"IF(nKenShu=2,comtDataRiyoudata0,IF(nKenShu=3, comtDataRiyoudata1,IF(nKenShu=4, comtDataRiyoudata2,IF(nKenShu=1, \"\",IF(nKenShu=5, comtDataRiyoudata4,\"\")))))","v":"機関により利用するデータが異なる場合は、個々の機関がどのようなデータを利用するか分かるように記載してください。加工したデータを利用する場合、どのような加工か分かるように（備考欄でもかまいませんので）記載してください。"}]
[null,"利用での主要な確認事項"]
[null,"選択してください",null,"　１）　データをあらかじめ特定した目的以外で利用することはない。特に、取得済みのデータや共同研究先が取得したデータを利用する場合は、取得時に本人から同意を得た目的以外では利用しないよう注意する。",null,null,null,null,null,null,"選択して下さい","<--","データの利用目的は、その用途が適切に限定されていることが必要です。"]
[null,null,null,"　２）　本人の同意を得ずに、個人の特定を行う分析や機微な内容（個人が知られたくない情報）を推定する分析を行わない",null,null,null,null,null,null,"選択して下さい　","<--","　データ利用目的と異なる目的で、個人を推定するような分析はできません。また、個人を推定するための他のデータとの突合もできません。\n　研究において個人を推定する必要性がある場合、別途相談ください。\n"]
[null,null,null,"　３）　本人の同意を得ずに、他の研究開発において取得したデータとの突合（マッシュアップ）を行わない",null,null,null,null,null,null,"選択して下さい　"]
[]
[null,"論文発表"]
[null,"選択してください",null,"      論文等の成果発表時、個人を特定できないようにしたデータもしくは統計データを用いる",null,null,null,null,null,null,"選択して下さい"]
[null,null,null,null,null,null,null,null,null,null,null,null,{"$f":"IF(nKenShu=1,comtDaisanTeikyo0,IF(nKenShu=2, comtDaisanTeikyo1,IF(nKenShu=3, comtDaisanTeikyo2,IF(nKenShu=4, comtDaisanTeikyo3,\"\"))))","v":"　生データのみならず加工、分析後のデータを第３者に公開・提供する場合も、１．を選択して下さい。受託者内でのデータ共有や、論文発表だけの場合は２．を選択してください。\n　第３者提供を計画される場合、事前同意書や公示パネルに第３者提供する旨の記載が必要です。また、その提供先が決まっている場合は、提供先の記載が必要です。可能ならば、第３者提供の目的において公共性（公共の利益）を明記されることを薦めます。"}]
[null,"データの取得主体以外（いわゆる第三者）に対するデータの提供・公開（論文発表を除く）"]
[null,"選択してください",null," 第三者に対するデータの提供・公開の予定はない（加工・分析後のデータを含む）",null,null,null,null,null,null,"選択して下さい",{"$f":"IF(nKenShu=1,\"<--\",IF(nKenShu=2, \"<--\",IF(nKenShu=3, \"<--\",IF(nKenShu=4, \"<--\",\"\"))))","v":"<--"}]
[null,"提供または公開を予定している場合"]
[null,{"$f":"IF(OR(K73=\"１．公開・提供の予定あり\",K73=\"３．未定だが公開の可能性がある\"),\"第三者に対するデータの提供・公開に関する項目。記載してください。\",IF(K73=\"２．公開・提供の予定なし\", \"記載は不要です \",\"\"))","v":""},null,"　　　第三者に対するデータの提供または公開は、本人の同意を得た範囲を超えて行わない",null,null,null,null,null,null,"選択して下さい　"]
[null,null,null,"　　　提供又は公開するデータ",null,null,null,null,null,null,null,"<--","匿名加工情報や匿名化という専門用語は、理解したうえで使うか、使わないでください。例えば、「個人を特定できないように○○の処理を施した○○」などと表記してください。"]
[null,null,null,"　　　提供又は公開先"]
[null,null,null,"　　　提供又は公開する目的"]
[null,null,null,"　　　データの提供、公開に当たり、データの利用目的や利用者、利用手続き等が明確化されている",null,null,null,null,null,null,"選択して下さい"]
[null,null,null,"データの提供先とは、利用目的の範囲内で利用する、セキュリティを確保する、個人特定を禁止する、本人の同意なく機微な内容を推定する分析を禁止する、等を含む契約を結ぶ",null,null,null,null,null,null,"選択して下さい"]
[]
[null,"データの廃棄",null,null,null,null,null,null,null,null,null,null,"データ取得前までにデータの保管期間を定めることが難しい場合には、×を選択し、理由と処置を備考欄に記載してください。例えば、保管期間を定めることが難しいことをあらかじめ同意書等に記載するなどが処置としてあげられます。"]
[null,"　１）　データの利用期間・保持期間を設定し、データ取得前か後に、本人からその内容について同意取得（又は通知・公表）を行う。",null,null,null,null,null,null,null,null,"選択して下さい","<--"]
[null,"利用期間・保持期間（年月日）",null,null,"◯◯◯◯年◯◯月◯◯日",null,"から","◯◯◯◯年◯◯月◯◯日",null,"まで",null,{"$f":"IF(nKenShu=2,\"<--\",IF(nKenShu=5,\"\",\"<--\"))","v":"<--"},{"$f":"IF(nKenShu=2,comtRiyouKikan0,IF(nKenShu=5,\"\",comtRiyouKikan1))","v":"委託研究では、パーソナルデータを含むデータは研究終了時に破棄、パーソナルデータを含まないデータは１０年間の保管をお願いしています。\n論文発表や研究内容に応じた期間変更は可能ですが、同意書及び公示ポスター等に、データ利用期間・保持期間を明記いただくと同時に、委託研究の年度別実施計画書と齟齬がないように注意ください。\n"}]
[null,"　２）　利用期間・保持期間終了時のデータの取り扱いに関して、データ取得前か後に、同意取得（又は通知・公表）を行う。",null,null,null,null,null,null,null,null,"選択して下さい　"]
[null,"終了時の取り扱い方法"]
[]
[null,"倫理委員会の承認状況（人体あるいは動物に対する実験）"]
[null,"１．人体あるいは動物に対する実験は行わない　　２．実験を行う予定であり、倫理委員会の承認を受けている　　３．実験を行う予定で、今後倫理委員会の承認を受ける予定である　　　×　（実験を行う予定だが、倫理委員会の承認を受ける予定はない）",null,null,null,null,null,null,null,null,"選択して下さい"]
[null,{"$f":"IF(K89=\"選択して下さい\",\"\",IF(K89=\"１．実験は行わない\",\"記載は不要です\",IF(K89=\"×（承認を受ける予定はない）\",\"記載は不要です\",\"記載してください\")))","v":""},null,"倫理委員会の設置機関、倫理委員会の名称及び研究課題名",null,null,null,null,"承認（予定）日","◯◯◯◯年○○月○○日"]
[]
[null,"委員会からの「パーソナルデータ取扱研究開発に対するリスク評価結果」への回答"]
[null,"委員会からの「パーソナルデータ取扱研究開発に対するリスク評価結果」に、以前にコメントはあったか\n１．初回の申請であるため上記リスク評価結果がない　　２．コメントがあった　　３．コメントはなかった",null,null,null,null,null,null,null,null,"選択して下さい"]
[null,{"$f":"IF(K93=\"選択して下さい\",\"\",IF(K93=\"２．コメントがあった\",\"記載してください\",\"記載は不要です\"))","v":""},null,"コメント、及びコメントへの回答",null,"■コメント\n　○○○○○○\n■コメントへの回答\n　○○○○○○\n"]
[]
[null,"備考\n\n追加説明情報を記載してください。\n少なくとも、チェックの結果が×とした項目については理由を記載してください。\n",null,null,null,null,null,null,null,null,null,"<--","\n第３者提供は、適切なる説明（事前同意やポスター公示）などが必要です。\n外部機関のプライバシーポリシー（Twitterや携帯キャリアなど）に準拠する場合は、その機関名を明記いただくとともに補足資料として規約やプライバーポリシーを準備ください。\n日欧・日米共同公募の場合、データの海外移送が想定されますが、海外機関との適切な契約と、被験者に対する説明が必要です。\n\n＜倫理委員会審査情報の記入のお願い＞\n所属機関における個人情報等の倫理委員会で審査を予定されている、又は審査を実施した場合、倫理委員会名称と実施時期と審査結果（実施済の場合）を記載ください。\nまた審査結果の通知がある場合、資料をご準備ください。\n"]
[]
[]
[null,"ここからは文章の記載"]
[null,"【様式１】への「パーソナルデータ取扱研究開発に対するリスク評価結果」に付与されたID[*]を記入してください。\n  [*] D_12345_190101_01形式 または 0001_FY19_01234形式のID"]
[null,"スタート☛           プルダウンより選択して下さい（右の矢印より選択してください）"]
[null,"自ら研究（運営費交付金を用いて機構内で行うもの）"]
[null,"委託研究（革新的情報通信技術研究開発委託研究）"]
[null,"受託研究・研究助成金による研究（外部機関から研究開発費用提供・助成を受けて行うもの）"]
[null,"共同研究（外部研究機関と共同で行うもの）"]
[null,"テストベッド利用研究（ＮＩＣＴ総合テストベッド利用規約および共同研究契約に基づいて行うもの）"]
[]
[null,"課題名、課題番号または個別課題番号、提案課題を記載ください。\n　　　・課題名：＊＊＊ネットワーク基盤の研究開発\n　　　・課題番号または個別課題番号：195／195A\n　　　・提案課題：＊＊＊の研究開発"]
[null,"委託研究における課題名と採択番号と副題とを記載ください。\n（例）・課題名：＊＊＊利活用・基盤技術の研究開発\n　　　・採択番号：195A05\n　　　・副題：＊＊＊を実現する＊＊＊予測技術の研究開発"]
[null,"研究計画中での審議（プロセス１、様式１）から変更になった場合には、新しい研究開発課題名に加えて、様式１に記載した研究開発課題名も\n「（旧）○○○○○○○○」と記入してください。"]
[null,"研究プロジェクトテーマ名（日本語）を記載してください。"]
[null,"NICT総合テストベッド研究計画書の研究プロジェクトテーマ名（日本語）を記入してください。研究計画中での審議（プロセス1、様式1）から変更になった場合には、新しい研究プロジェクトテーマ名に加えて、様式1に記載した研究プロジェクトテーマ名も「（旧）〇〇〇〇〇〇〇」と記入してください。"]
[null,"開始には文字列で「委託研究契約日」、終了（予定）には研究終了を予定している日にちを西暦で記入してください。和歴は自動入力されま\nす。"]
[null,"委託研究契約の契約日／終了予定日を西暦で記入してください。和歴は自動入力されます。"]
[null,"NICT総合テストベッド研究計画書の利用スケジュールを西暦で記入してください。和歴は自動入力されます。"]
[null,"委託研究計画書における研究概要文を流用いただいても結構です。"]
[null,"NICT総合テストベッド研究計画書の研究目的、研究内等に基づき記入してください。"]
[null,"上記概要（目的、計画、方法）の中で、パーソナルデータを取り扱うことで、研究全体の中で、どのような成果が期待できるか、パーソナルデータを取り扱う目的と必要性を、できる限り具体的に記載ください。"]
[null,"委託研究では、パーソナルデータを含むデータは研究終了時に破棄、パーソナルデータを含まないデータは１０年間の保管をお願いしています。\n論文発表や研究内容に応じた期間変更は可能ですが、同意書及び公示ポスター等に、データ利用期間・保持期間を明記いただくと同時に、委託研究の年度別実施計画書と齟齬がないように注意ください。\n"]
[null,"「情報通信研究機構研究資料等の保存及び管理に関するガイドライン」により、研究資料は論文等を発表してから原則として10年間の保管を求められますので注意してください。"]
[null,"本人から同意を取得する（○）か否（×）かを選択してください。\n　・同意書は、データの利用目的を適切に限定することが必要です。\n　・同意書は、取得するパーソナルデータを使用するすべての研究機関が使用し、論文発表を含む学術目的である旨の同意を取得してください。\n　・取得するパーソナルデータ（加工、分析データを含む）の第３者提供を予定する場合、その旨の同意を取得してください。\n　・否（×）の場合、備考欄に理由を記載してください。その際、利用目的や処理内容などについて本人に事前告知や通知をする方法と内容を、できるだけ具体的に記載してください。"]
[null,"・取得主体を全て記載ください。Ａ社が取得したものを共同研究先のB社に提供する場合はA社を、A社とB社が共同で取得する場合にはA社とB社を記載してください。既にあるデータの場合、そのデータを取得した機関を記載してください。\n　　例1： NICT, A社, B社。　例2： NICT。\n・C社（例えばNICT）がD社に業務委託してデータを取得する場合には、C社を記載して業務委託先も記載してください。\n　　例3： C社（取得作業はC社からD社に業務委託する）。"]
[null,"・取得主体を全て記載ください。Ａ大学が取得したものを共同研究先のB社に提供する場合はA大学を、A大学とB社が共同で取得する場合にはA大学とB社を記載してください。既にあるデータの場合、そのデータを取得した機関を記載してください。\n・C社（例えばNICT）がD社に業務委託してデータを取得する場合には、C社(例えばNICT)を記載して業務委託先も記載してください。\n　　例3： C社（取得作業はD社に業務委託）"]
[null,"全受託者及びNICTのうち、実際に保管する受託者を記入してください。"]
[null,"委託を受ける全機関のうち、実際に保管する機関を記入してください。"]
[null,"共同研究機関のうち、実際に保管する機関を記入してください。"]
[null,"NICTと記入してください。"]
[null,"実際にデータをサーバ等に書込む作業や、その後の維持・管理作業を行う機関を記入してください。"]
[null,"全受託者及びNICTのうち、実際に利用する受託者（データを受け取るだけの受託者を含む）を記入してください。"]
[null,"委託を受ける全機関のうち、実際に利用する機関（データを受け取るだけの機関を含む）を記入してください。"]
[null,"共同研究機関のうち、実際に利用する機関（データを受け取るだけの機関を含む）を記入してください。"]
[null,"NICTと記入してください。"]
[null,"実際にデータを利用する機関を記入してください。"]
[null,"機関により利用するデータが異なる場合は、個々の機関がどのようなデータを利用するか分かるように記載してください。加工したデータを利用する場合、どのような加工か分かるように（備考欄でもかまいませんので）記載してください。"]
[null,"機関により利用するデータが異なる場合は、個々の機関がどのようなデータを利用するか分かるように記載してください。加工したデータを利用する場合、どのような加工か分かるように（備考欄でもかまいませんので）記載してください。"]
[null,"機関により利用するデータが異なる場合は、個々の機関がどのようなデータを利用するか分かるように記載してください。加工したデータを利用する場合、どのような加工か分かるように（備考欄でもかまいませんので）記載してください。"]
[]
[null,"機関により利用するデータが異なる場合は、個々の機関がどのようなデータを利用するか分かるように記載してください。加工したデータを利用する場合、どのような加工か分かるように（備考欄でもかまいませんので）記載してください。"]
[null,"　生データのみならず加工、分析後のデータを第３者に公開・提供する場合も、１．を選択して下さい。論文発表だけの場合は２．を選択してください。\n　第３者提供を計画される場合、事前同意書や公示パネルに第３者提供する旨の記載が必要です。また、その提供先が決まっている場合は、提供先の記載が必要です。可能ならば、第３者提供の目的において公共性（公共の利益）を明記されることを薦めます。"]
[null,"　生データのみならず加工、分析後のデータを第３者に公開・提供する場合も、１．を選択して下さい。受託者内でのデータ共有や、論文発表だけの場合は２．を選択してください。\n　第３者提供を計画される場合、事前同意書や公示パネルに第３者提供する旨の記載が必要です。また、その提供先が決まっている場合は、提供先の記載が必要です。可能ならば、第３者提供の目的において公共性（公共の利益）を明記されることを薦めます。"]
[null,"　生データのみならず加工、分析後のデータを第３者に公開・提供する場合も、１．を選択して下さい。委託を受けた機関内でのデータ共有や、論文発表だけの場合は２．を選択してください。\n　第３者提供を計画される場合、事前同意書や公示パネルに第３者提供する旨の記載が必要です。また、その提供先が決まっている場合は、提供先の記載が必要です。可能ならば、第３者提供の目的において公共性（公共の利益）を明記されることを薦めます。"]
[null,"　生データのみならず加工、分析後のデータを第３者に公開・提供する場合も、１．を選択して下さい。共同研究機関内でのデータ共有や、論文発表だけの場合は２．を選択してください。\n　第３者提供を計画される場合、事前同意書や公示パネルに第３者提供する旨の記載が必要です。また、その提供先が決まっている場合は、提供先の記載が必要です。可能ならば、第３者提供の目的において公共性（公共の利益）を明記されることを薦めます。"]
[null,"　"]
[null,"研究代表者が外部機関の場合、代表研究者とNICTに所属する研究分担者1名をご記入下さい。"]
[null,"NICT総合テストベッド研究計画書の連絡窓口を記入してください。"]
[null,"ここからは条件判定の記載"]
[null,{"$f":"IF(B3=\"研究計画中(委員会にて様式1で審議する段階。プロセス1)\",1,IF(B3=\"研究実施前(委員会にて様式2で審議する段階。プロセス3)\",2,0))","v":1},"様式：　様式１だと\"1\"、様式2だと\"2\""]
[null,{"$f":"IF(txtKenShu=txtKenShuMizukara,1,IF(txtKenShu=txtKenShuItaku,2,IF(txtKenShu=txtKenShuJutaku,3,IF(txtKenShu=txtKenShuKyoudou,4,IF(txtKenShu=txtKenShuTestbed,5,0)))))","v":2},"研究種別：　スタートだと0, 自ら研究だと1, 委託研究だと2, 受託研究だと3, 共同研究だと4, テストベッド利用研究だと5"]

{"sheet":"提案者記入例（委託研究）","index":1,"n_rows":148,"n_cols":13,"rows_kept":148,"cut":false,"hidden":false,"merged":[[0,3,1,8],[2,1,2,5],[4,1,7,3],[4,4,5,4],[4,6,4,10],[4,12,4,19],[5,6,5,10],[5,12,5,19],[6,4,7,4],[6,6,6,10],[10,1,10,3],[10,4,10,6],[10,7,10,10],[10,12,10,19],[12,2,12,3],[12,4,12,10],[12,12,12,19],[6,12,6,19],[7,6,7,10],[7,12,7,19],[8,1,8,3],[8,4,8,10],[8,12,9,19],[9,1,9,10],[16,7,16,10],[17,1,19,2],[17,4,17,10],[17,12,17,19],[18,4,18,10],[19,4,19,10],[13,3,13,10],[14,1,14,3],[14,4,14,10],[14,12,14,19],[15,1,16,3],[15,5,15,6],[15,7,15,10],[15,11,16,11],[15,12,16,19],[16,5,16,6],[24,1,24,3],[24,4,24,10],[24,12,24,19],[25,1,25,3],[25,4,25,5],[25,6,25,10],[20,1,22,2],[20,3,21,3],[20,4,21,10],[21,12,21,19],[22,4,22,10],[22,12,22,19],[26,1,26,3],[26,4,26,10],[26,12,26,19],[27,1,27,10],[27,12,27,19],[29,1,29,10],[29,12,31,19],[30,1,30,9],[31,1,32,2],[31,3,31,9],[32,3,32,4],[32,5,32,10],[32,12,32,19],[33,1,33,2],[33,3,33,4],[33,5,33,10],[33,12,35,19],[34,1,34,9],[35,1,37,2],[35,3,35,4],[40,1,40,2],[40,3,40,9],[41,1,41,2],[41,3,41,4],[41,5,41,10],[41,12,41,19],[35,6,35,7],[35,8,35,10],[37,3,37,9],[37,12,39,19],[38,1,39,2],[38,3,38,4],[38,5,38,10],[39,3,39,9],[36,3,36,9],[46,1,46,10],[47,1,47,10],[48,1,48,2],[48,3,48,9],[48,12,48,19],[49,1,49,2],[49,3,49,4],[49,5,49,10],[42,1,45,2],[42,3,42,4],[42,5,42,10],[43,3,43,4],[43,5,43,10],[44,3,44,4],[44,5,44,10],[45,3,45,9],[50,1,50,2],[50,3,50,9],[51,1,52,2],[51,3,51,4],[51,5,51,10],[51,12,51,19],[52,3,52,4],[52,5,52,10],[52,12,52,19],[53,1,53,9],[54,1,58,2],[54,3,54,4],[54,5,54,10],[55,3,55,4],[55,5,55,10],[56,3,56,4],[56,5,56,10],[57,3,57,4],[57,5,57,10],[58,3,58,4],[58,5,58,10],[58,12,58,19],[59,1,59,10],[60,1,60,10],[61,1,62,2],[61,3,61,4],[61,5,61,10],[61,12,61,19],[62,3,62,4],[62,5,62,10],[62,12,62,19],[63,1,63,10],[64,1,66,2],[64,3,64,9],[64,12,64,19],[65,3,65,9],[65,12,66,19],[66,3,66,9],[67,1,67,10],[68,1,68,10],[69,1,69,2],[69,3,69,9],[70,12,73,19],[71,1,71,10],[72,1,72,2],[72,3,72,9],[73,1,73,10],[79,3,79,9],[81,1,81,10],[81,12,82,19],[82,1,82,9],[83,1,83,3],[83,4,83,5],[83,7,83,8],[83,9,83,10],[83,12,85,19],[84,1,84,9],[74,1,79,2],[74,3,74,9],[75,3,75,4],[75,5,75,10],[75,12,76,19],[76,3,76,4],[76,5,76,10],[77,3,77,4],[77,5,77,10],[78,3,78,9],[91,1,91,10],[92,1,92,9],[93,1,93,2],[93,3,93,4],[93,5,93,10],[95,1,95,3],[95,4,95,10],[85,1,85,3],[85,4,85,10],[87,1,87,10],[88,1,88,9],[89,1,89,2],[89,4,89,7],[89,9,89,10],[103,1,103,10],[104,1,104,10],[105,1,105,10],[107,1,107,10],[108,1,108,10],[109,1,109,10],[95,12,95,19],[98,1,98,3],[99,1,99,10],[100,1,100,10],[101,1,101,10],[102,1,102,10],[116,1,116,10],[117,1,117,10],[118,1,118,10],[119,1,119,10],[120,1,120,10],[121,1,121,10],[110,1,110,10],[111,1,111,10],[112,1,112,10],[113,1,113,10],[114,1,114,10],[115,1,115,10],[128,1,128,10],[129,1,129,10],[130,1,130,10],[131,1,131,10],[132,1,132,10],[133,1,133,10],[122,1,122,10],[123,1,123,10],[124,1,124,10],[125,1,125,10],[126,1,126,10],[127,1,127,10],[140,1,140,10],[141,1,141,10],[142,1,142,10],[143,1,143,10],[144,1,144,10],[145,1,145,3],[134,1,134,10],[135,1,135,10],[136,1,136,10],[137,1,137,10],[138,1,138,10],[139,1,139,10]]}
[null,{"$f":"IF(nYoushiki=1,\"様式1\",IF(nYoushiki=2,\"様式2\",\"\"))","v":"様式1"},null,"パーソナルデータ取扱チェックリスト(記入例)",null,null,null,null,null,"　　　　Rev.9.5.25(2020.2.4)"]
[]
[null,"研究計画中(委員会にて様式1で審議する段階。プロセス1)"]
[]
[null,{"$f":"IF(nKenShu=5,\"NICT 受付・確認\",\"確認・承認\")","v":"確認・承認"},null,null,{"$f":"IF(nKenShu=5,\"研究所長等\",\"取扱責任者\n(研究所長等)\")","v":"取扱責任者\n(研究所長等)"},"氏名",{"$f":"IF(D14=\"委託研究（革新的情報通信技術研究開発委託研究）\",\"\",\"〇〇　〇〇 \")","v":""},null,null,null,null,"<--",{"$f":"IF(nKenShu=2,\"記載は不要です\",IF(nKenShu=5,\"NICTにて記載します\",\"様式提出ごとに確認・承認が必要です\"))","v":"記載は不要です"}]
[null,null,null,null,null,"確認日（年月日）",{"$f":"IF(D14=\"委託研究（革新的情報通信技術研究開発委託研究）\",\"\",\"〇〇〇〇年〇〇月〇〇日\")","v":""},null,null,null,null,"<--",{"$f":"IF(nKenShu=2,\"記載は不要です\",IF(nKenShu=5,\"NICTにて記載します\",\"様式提出ごとに確認・承認が必要です\"))","v":"記載は不要です"}]
[null,null,null,null,{"$f":"IF(nKenShu=5,\"研究室長等\",\"取扱管理者\n（研究室長）\")","v":"取扱管理者\n（研究室長）"},"氏名",{"$f":"IF(D14=\"委託研究（革新的情報通信技術研究開発委託研究）\",\"\",\"〇〇　〇〇 \")","v":""},null,null,null,null,"<--",{"$f":"IF(nKenShu=2,\"記載は不要です\",IF(nKenShu=5,\"NICTにて記載します\",\"様式提出ごとに確認・承認が必要です\"))","v":"記載は不要です"}]
[null,null,null,null,null,"確認日（年月日）",{"$f":"IF(D14=\"委託研究（革新的情報通信技術研究開発委託研究）\",\"\",\"〇〇〇〇年〇〇月〇〇日 \")","v":""},null,null,null,null,"<--",{"$f":"IF(nKenShu=2,\"記載は不要です\",IF(nKenShu=5,\"NICTにて記載します\",\"様式提出ごとに確認・承認が必要です\"))","v":"記載は不要です"}]
[null,"研究開発課題ID",null,null,null,null,null,null,null,null,null,{"$f":"IF(nYoushiki=1,\"<--\",IF(nYoushiki=2,\"<--\",IF(nKenShu=5,\"<--\",\"\")))","v":"<--"},{"$f":"IF(nYoushiki=1,\"\n記載は不要です\",IF(nYoushiki=2,comtKenKaiKadaiId0,\"\"))","v":"\n記載は不要です"}]
[null,"【記入上の注意事項】\n＊提出の際はＥｘｃｅｌのまま提出してください。"]
[null,"作成日（年月日）",null,null,"2020-02-02",null,null,{"$f":"$E$11","v":"2020-02-02"},null,null,null,"<--","様式提出ごとに作成日を記載してください"]
[]
[null,null,{"$f":"IF(nKenShu=5,\"研究プロジェクトテーマ名\",\"研究開発課題名\")","v":"研究開発課題名"},null,"課題名：　○○○○\n課題番号：　○○○\n提案課題：　○○○○",null,null,null,null,null,null,{"$f":"IF(nKenShu=2,IF(nYoushiki=1,\"<--\",IF(nYoushiki=2,\"<--\",\"\")),IF(nKenShu=5,IF(nYoushiki=1,\"<--\",IF(nYoushiki=2,\"<--\",\"\")),IF(nYoushiki=2,\"<--\",\"\")))","v":"<--"},{"$f":"IF(nKenShu=2,IF(nYoushiki=1,comtKenKaiKadaiMei0,IF(nYoushiki=2,comtKenKaiKadaiMei1,\"\")),IF(nKenShu=5,IF(nYoushiki=1,comtKenKaiKadaiMei3,IF(nYoushiki=2,comtKenKaiKadaiMei4,\"\")),IF(nYoushiki=2,comtKenKaiKadaiMei2,\"\")))","v":"課題名、課題番号または個別課題番号、提案課題を記載ください。\n　　　・課題名：＊＊＊ネットワーク基盤の研究開発\n　　　・課題番号または個別課題番号：195／195A\n　　　・提案課題：＊＊＊の研究開発"}]
[null,"研究種別　",null,"委託研究（革新的情報通信技術研究開発委託研究）"]
[null,{"$f":"IF(nKenShu=0,\"\",IF(nKenShu=1,\"\",IF(nKenShu=2,IF(nYoushiki=1,\"提案者\",\"受託者\"),IF(nKenShu=3,\"受託元\",IF(nKenShu=4,\"共同研究先\",\"テストベッド利用機関\")))))","v":"提案者"},null,null,"A株式会社、B大学、C大学",null,null,null,null,null,null,{"$f":"IF(nKenShu=1,\"<--\",\" \")","v":" "},{"$f":"IF(nKenShu=1,\"記載は不要です\",\" \")","v":" "}]
[null,"研究開発期間（年月日）",null,null,"開始","委託研究契約日",null,{"$f":"F16","v":"委託研究契約日"},null,null,null,{"$f":"IF(nKenShu=2,IF(nYoushiki=1,\"<--\",IF(nYoushiki=2,\"<--\",\"\")),IF(nKenShu=5,\"<--\",\"\"))","v":"<--"},{"$f":"IF(nKenShu=2,IF(nYoushiki=1,comtKenKaiKikan0,IF(nYoushiki=2,comtKenKaiKikan1,\"\")),IF(nKenShu=5,comtKenKaiKikan2,\"\"))","v":"開始には文字列で「委託研究契約日」、終了（予定）には研究終了を予定している日にちを西暦で記入してください。和歴は自動入力されま\nす。"}]
[null,null,null,null,"終了（予定）","2022-03-31",null,{"$f":"F17","v":"2022-03-31"}]
[null,"取扱担当者",null,"所属","A株式会社\n研究開発部",null,null,null,null,null,null,{"$f":"IF(nKenShu=2,\"\",IF(nKenShu=3, \"<--\",IF(nKenShu=5, \"<--\",\"\")))","v":""},{"$f":"IF(nKenShu=2,comtToriTantou0,IF(nKenShu=3, comtToriTantou1,IF(nKenShu=5, comtToriTantou2,\"\")))","v":"　"}]
[null,null,null,"氏名","情報太郎"]
[null,null,null,"ﾒｰﾙｱﾄﾞﾚｽ","taro@jyouhou.co.jp"]
[null,"研究の概要\n\n外部有識者による審議で本リストを用います。予備知識がなくても研究内容を俯瞰、理解できるように、専門用語や略語を使わないでください。",null,"研究目的\n/研究計画・方法\n\n３００字程度で記載してください。","　計算機の急速な発展に後押しされてコンピュータビジョン(CV)に関連する研究が盛んにされており、自動車の自動車運転や人物推定などへの応用が脚光をあびている。このようなCV技術をベースとして人物の感情を高い精度で検出することができれば、例えば、あるイベントにおいて許容できる待ち時間を客観的に計測できるなど、様々な応用を期待できる。このような応用を目指して、映像から人物の感情を高い精度で検出できる技術を研究する。\n　研究は、①日本及び米国にて人物の撮影および感情のアンケート、②それらのデータの分析、という順で行う。①でのデータ取得は、本人の同意があった場合のみ行う。\n"]
[null,null,null,null,null,null,null,null,null,null,null,{"$f":"IF(nKenShu=2,\"<--\",IF(nKenShu=5,\"<--\",\"\"))","v":"<--"},{"$f":"IF(nKenShu=2,comtKenMokuteki0,IF(nKenShu=5,comtKenMokuteki1,\"\"))","v":"委託研究計画書における研究概要文を流用いただいても結構です。"}]
[null,null,null,"パーソナルデータを取り扱う目的及び必要性","映像から感情を推定するアルゴリズムを検討するためには、映像およびその時の感情情報が必要なため。また、日本人に限らずに使える技術を確立するため米国でもデータを取得する。",null,null,null,null,null,null,"<--",{"$f":"comtPdToriMokuteki0","v":"上記概要（目的、計画、方法）の中で、パーソナルデータを取り扱うことで、研究全体の中で、どのような成果が期待できるか、パーソナルデータを取り扱う目的と必要性を、できる限り具体的に記載ください。"}]
[]
[null,"取り扱うパーソナルデータ\n（多数の場合は別添可）",null,null,"映像データ（ビデオデータ）、感情に関するアンケート",null,null,null,null,null,null,"<--","取り扱うパーソナルデータを具体的に記載ください。\n下記（参考）を参照いただき、パーソナルデータを列挙ください。"]
[null,"取得件数　 「総データ数＝人数×上に記したデータ種類」の場合、人数に相当する値を記載。それ以外の場合は備考欄に説明を記載してください。",null,null,"約30",null,"件"]
[null,"取得方法\n",null,null,"映像データ（ビデオデータ）およびアンケートは以下の条件で30人程度を取得する。\n　・撮影前に、本人に研究目的や取得するデータ、それらデータの使い方等を説明して同意を取得\n　・同意を取得してない人物は映像に映らないようにする\n　・５人程度が画像に収まるぐらいの画角で撮影\n　・体の動きだけでなく、表情も読み取れる程度の画質で撮影\n　・アンケートは、映像データを本人に見せながら、その時の感情を述べてもらう",null,null,null,null,null,null,"<--","パーソナルデータの取得方法（取得主体、手段、場所、など）を具体的かつ簡潔に記載ください。\n（例）\n　・スマホアプリケーションによるMACアドレス／GPS位置情報の取得\n　・***カメラ（撮影原理）による人流映像測定\n　・ドローンを用いた*m3程度の農産物情報の取得\n　・***センサ－（センサー原理）による高齢者生体情報の取得\n　・アンケート"]
[null,"（参考）プライバシーを侵害する可能性があるパーソナルデータ例\n\nアドレス情報（IPアドレス、MACアドレス、位置情報（GPS以外の電波等を利用して得た情報を含む）、他）、施設・設備利用ログデータ（地域に展開した社会実証テストベッド利用、他）、生体情報（音声情報、脳活動情報、MRI/内視鏡/CT等で取得した映像・画像、等）、生理・心理計測データ（刺激に対する反応、等）、人体に対するレーザーレーダ・レーダ断面積等の測定データ、映像データ（ドローン搭載カメラを含む）、アンケート結果、カルテ・処方箋、ソーシャルネットワークサービスに記載された情報、プローブカーによって収集された各種データ、等\n",null,null,null,null,null,null,null,null,null,null,"（重要）\n２ページ目以降の各項目において×を選択した場合、末尾の備考欄に、その理由を必ず記載してください。\n\n"]
[]
[null,"データの取得",null,null,null,null,null,null,null,null,null,null,{"$f":"comtDataShutoku0","v":"本人から同意を取得する（○）か否（×）かを選択してください。\n　・同意書は、データの利用目的を適切に限定することが必要です。\n　・同意書は、取得するパーソナルデータを使用するすべての研究機関が使用し、論文発表を含む学術目的である旨の同意を取得してください。\n　・取得するパーソナルデータ（加工、分析データを含む）の第３者提供を予定する場合、その旨の同意を取得してください。\n　・否（×）の場合、備考欄に理由を記載してください。その際、利用目的や処理内容などについて本人に事前告知や通知をする方法と内容を、できるだけ具体的に記載してください。"}]
[null,"　データの取得：　１．本研究でデータを取得する　２．既にあるデータを活用するのみで新たな取得はしない",null,null,null,null,null,null,null,null,"１．本研究でデータを取得する"]
[null,{"$f":"IF(K31=\"１．本研究でデータを取得する\",\"記載してください\",IF(K31=\"２．既にあるデータを活用するのみで新たな取得はしない\",\"記載は不要です\",\"\"))","v":"記載してください"},null,"取得するデータ、データの取得方法、利用目的、第三者提供の可否等について、本人（データ化される人）から同意を取得する。　（ただし、本人が自らSNSやブログ等を通してインターネット上に発信した情報を取得する場合を除く。[注]この場合、著作権の観点でも注意してください)",null,null,null,null,null,null,"◯","<--"]
[null,null,null,"取得予定時期\n例：○○○○年○月頃までに取得予定",null,"2020年１２月頃までに取得予定",null,null,null,null,null,"<--","おおよそ決まっている場合は記入してください。決まってない場合は未定と記入してください。"]
[null,"記載してください",null,"データ取得者（取得主体、データを取得する機関）",null,"A株式会社、C大学",null,null,null,null,null,{"$f":"IF(nKenShu=5,\"<--\",\"<--\")","v":"<--"},{"$f":"IF(nKenShu=5,comtDataShutokusha1,comtDataShutokusha0)","v":"・取得主体を全て記載ください。Ａ社が取得したものを共同研究先のB社に提供する場合はA社を、A社とB社が共同で取得する場合にはA社とB社を記載してください。既にあるデータの場合、そのデータを取得した機関を記載してください。\n　　例1： NICT, A社, B社。　例2： NICT。\n・C社（例えばNICT）がD社に業務委託してデータを取得する場合には、C社を記載して業務委託先も記載してください。\n　　例3： C社（取得作業はC社からD社に業務委託する）。"}]
[null,"オプトイン／オプトアウト：　１．オプトイン　２．オプトアウト　３．オプトイン、オプトアウトの両方　　×（両方ともしない）",null,null,null,null,null,null,null,null,"３．両方"]
[null,{"$f":"IF(K35=\"選択して下さい\",\"\",IF(OR(K35=\"１．オプトイン\",K35=\"３．両方\"),\"記載してください\",\"記載は不要です\"))","v":"記載してください"},null,"オプトイン（同意）の方法",null,"書面",{"$f":"IF(OR(F36=\"選択してください\",F36=\"書面\",F36=\"Web\",F36=\"アプリ\"),\"\",\"取得手段を記載して下さい\")","v":""}]
[null,null,null,"同意取得における説明において、データの利用目的や第３者提供について認識・理解しやすい形で伝えているか",null,null,null,null,null,null,"〇"]
[null,null,null,"未成年からデータを取得する場合は、保護者の同意を取得する\n　　１．未成年からデータを取得しない　　２．保護者の同意を得て未成年からデータを取得する　　×（保護者の同意を得ずに未成年からデータを取得する）",null,null,null,null,null,null,"１．未成年から取得しない",null,"・オプトアウトを準備する場合、その手段[*1]や内容[*2]を具体的に記載してください。\n　[*1]例えば、書面、公示パネル\n　[*2]例えば、要請による取得データの削除や、第３者提供の拒否\n・オプトアウトを受け付けるためには、その方のデータが特定できるように個人情報を持ち続けることになるため、データの保管には注意する必要があります。この点も考慮して、オプトアウトを受け付けるかどうか判断してください。"]
[null,{"$f":"IF(K35=\"選択して下さい\",\"\",IF(OR(K35=\"２．オプトアウト\",K35=\"３．両方\"),\"記載してください\",\"記載は不要です\"))","v":"記載してください"},null,"オプトアウトの方法",null,"オプトアウトを希望する際の連絡先を、オプトイン時に本人に伝える。\n本人から希望があれば、速やかに映像データとアンケートを削除して、削除した旨を本人に伝える。",null,null,null,null,null,"<--"]
[null,null,null,"オプトアウトは、認識・理解しやすい形で通知・公表されているか",null,null,null,null,null,null,"〇"]
[null,{"$f":"IF(K31=\"１．本研究でデータを取得する\",\" \",IF(K31=\"２．既にあるデータを活用するのみで新たな取得はしない\",\"本項目は記載は不要です\",\"\"))","v":" "},null,"　データの取得場所：　１．国内のみ　２．海外も含む（または海外のみ）",null,null,null,null,null,null,"２．海外も含む（・・・）",null," "]
[null,{"$f":"IF(K31=\"２．既にあるデータを活用するのみで新たな取得はしない\",\"記載は不要です\",IF(K41=\"１．国内のみ\",\"記載してください\",IF(K41=\"２．海外も含む（・・・）\",\"記載してください\",\"\")))","v":"記載してください"},null,"データを取得する場所",null,"A株式会社の日本国内敷地、C大学の米国内敷地",null,null,null,null,null,"<--","繁華街やオフィスビルエリア、病院内などが分かるように、なるべく具体的に記載してください。"]
[null,{"$f":"IF(K31=\"２．既にあるデータを活用するのみで新たな取得はしない\",\"記載は不要です\",IF(K41=\"１．国内のみ\",\"記載は不要です\",IF(K41=\"２．海外も含む（・・・）\",\"データ取得に関する項目。記載してください\",\"\")))","v":"データ取得に関する項目。記載してください"},null,"データを取得する国",null,"日本及び米国"]
[null,null,null,"海外で取得するデータ",null,"映像データ、感情に関するアンケート"]
[null,null,null,"海外で取得する理由／目的",null,"日本人に限らずに使える技術を確立するため海外でもデータを取得する。"]
[null,null,null,"取得する国での取得ルールに従っている",null,null,null,null,null,null,"○"]
[]
[null,"データの管理","データの管理"]
[null,"選択してください",null,"パーソナルデータの移送時には、適切な暗号化処理等を行うなどセキュリティを担保する\n　　１．移送しない　　２．担保しながら移送する　　×（担保せずに移送する）",null,null,null,null,null,null,"２．担保しながら移送する","<--","移送時には、暗号化処理など適切なセキュリティを担保することが必要です。"]
[null,{"$f":"IF(K49=\"選択して下さい\",\"\",IF(K49=\"２．担保しながら移送する\",\"記載してください\",\"記載は不要です\"))","v":"記載してください"},null,"　 暗号化処理などセキュリティの担保方法",null,"データはZIPファイルにして、ZIPファイルにパスワードを掛ける。"]
[null,"選択してください",null,"パーソナルデータの保管時には、取り扱うパーソナルデータにアクセスできる職員を必要最小限としたり、暗号化処理をするなどセキュリティを担保する。\n　　１．保管しない　　２．担保しながら保管する　　×（担保せずに保管する）",null,null,null,null,null,null,"２．担保しながら保管する"]
[null,{"$f":"IF(K51=\"選択して下さい\",\"\",IF(K51=\"２．担保しながら保管する\",\"記載してください\",\"記載は不要です\"))","v":"記載してください"},null,"　パスワードによるアクセス制御や暗号化処理などセキュリティの担保方法",null,"長期的に保管するデータはZIPファイルにして、ZIPファイルにパスワードを掛ける。",null,null,null,null,null,"<--","特に機密性が高いと考えるデータ（例：要配慮個人情報）を保管する場合には、暗号化等も検討してください。"]
[null,null,null,"データを保管する機関",null,"A株式会社、B大学、C大学",null,null,null,null,null,{"$f":"IF(nKenShu=2,\"<--\",IF(nKenShu=3, \"<--\",IF(nKenShu=4, \"<--\",IF(nKenShu=1, \"<--\",IF(nKenShu=5, \"<--\",\"\")))))","v":"<--"},{"$f":"IF(nKenShu=2,comtDataHokansha0,IF(nKenShu=3, comtDataHokansha1,IF(nKenShu=4,comtDataHokansha2,IF(nKenShu=1, comtDataHokansha3,IF(nKenShu=5, comtDataHokansha4,\"\")))))","v":"全受託者及びNICTのうち、実際に保管する受託者を記入してください。"}]
[null,"海外研究機関・海外設置クラウド等、海外へ/海外からデータの移送は行わない。",null,null,null,null,null,null,null,null,"1．移送あり"]
[null,{"$f":"IF(K54=\"1．移送あり\",\"海外へ/海外からのデータ移送に関する項目\",IF(K54=\"2．移送なし\",\"記載は不要です\",\"\"))","v":"海外へ/海外からのデータ移送に関する項目"},null,"移送元の機関",null,"A株式会社の日本本社、C大学"]
[null,null,null,"移送先の機関",null,"【A株式会社が取得したデータ】\nA株式会社の日本本社から、A株式会社の米国支社とB大学（日本）、C大学（米国）に移送\n【Ｃ大学が取得したデータ】\nＣ大学（米国）から、A株式会社の日本本社と米国支社、B大学（日本）に移送"]
[null,null,null,"移送するデータ",null,"映像データ（ビデオデータ）、感情に関するアンケート"]
[null,null,null,"移送する理由／目的",null,"Ａ株式会社日本本社及びＣ大学が取得したデータを、Ａ株式会社（日本本社、米国支社）およびＢ大学、Ｃ大学で共有して、それぞれでアルゴリズムを検討・改善するため。"]
[null,null,null,"移送方法",null,"Ａ株式会社が有するファイル転送システム（商用システム）を利用",null,null,null,null,null,"<--","ファイル転送システムを利用する場合には、どのようなシステムを利用するのか記載してください。　　例：NICTのシステム、無料のシステム"]
[]
[null,"データの利用"]
[null,"記載してください",null,{"$f":"IF(nKenShu=5,\"実際に利用する機関\",\"実際に利用する機関（データを受け取るだけの機関を含む）\")","v":"実際に利用する機関（データを受け取るだけの機関を含む）"},null,"A株式会社、B大学、C大学",null,null,null,null,null,{"$f":"IF(nKenShu=2,\"<--\",IF(nKenShu=3, \"<--\",IF(nKenShu=4, \"<--\",IF(nKenShu=1, \"<--\",IF(nKenShu=5, \"<--\",\"\")))))","v":"<--"},{"$f":"IF(nKenShu=2,comtDataRiyousha0,IF(nKenShu=3, comtDataRiyousha1,IF(nKenShu=4, comtDataRiyousha2,IF(nKenShu=1, comtDataRiyousha3,IF(nKenShu=5, comtDataRiyousha4,\"\")))))","v":"全受託者及びNICTのうち、実際に利用する受託者（データを受け取るだけの受託者を含む）を記入してください。"}]
[null,null,null,"上記機関が利用するデータ",null,"映像データ（ビデオデータ）、感情に関するアンケート",null,null,null,null,null,{"$f":"IF(nKenShu=2,\"<--\",IF(nKenShu=3, \"<--\",IF(nKenShu=4, \"<--\",IF(nKenShu=1, \"\",IF(nKenShu=5, \"<--\",\"\")))))","v":"<--"},{"$f":"IF(nKenShu=2,comtDataRiyoudata0,IF(nKenShu=3, comtDataRiyoudata1,IF(nKenShu=4, comtDataRiyoudata2,IF(nKenShu=1, \"\",IF(nKenShu=5, comtDataRiyoudata4,\"\")))))","v":"機関により利用するデータが異なる場合は、個々の機関がどのようなデータを利用するか分かるように記載してください。加工したデータを利用する場合、どのような加工か分かるように（備考欄でもかまいませんので）記載してください。"}]
[null,"利用での主要な確認事項"]
[null,"選択してください",null,"　１）　データをあらかじめ特定した目的以外で利用することはない。特に、取得済みのデータや共同研究先が取得したデータを利用する場合は、取得時に本人から同意を得た目的以外では利用しないよう注意する。",null,null,null,null,null,null,"○","<--","データの利用目的は、その用途が適切に限定されていることが必要です。"]
[null,null,null,"　２）　本人の同意を得ずに、個人の特定を行う分析や機微な内容（個人が知られたくない情報）を推定する分析を行わない",null,null,null,null,null,null,"○","<--","　データ利用目的と異なる目的で、個人を推定するような分析はできません。また、個人を推定するための他のデータとの突合もできません。\n　研究において個人を推定する必要性がある場合、別途相談ください。\n"]
[null,null,null,"　３）　本人の同意を得ずに、他の研究開発において取得したデータとの突合（マッシュアップ）を行わない",null,null,null,null,null,null,"○"]
[]
[null,"論文発表"]
[null,"選択してください",null,"      論文等の成果発表時、個人を特定できないようにしたデータもしくは統計データを用いる",null,null,null,null,null,null,"○"]
[null,null,null,null,null,null,null,null,null,null,null,null,{"$f":"IF(nKenShu=1,comtDaisanTeikyo0,IF(nKenShu=2, comtDaisanTeikyo1,IF(nKenShu=3, comtDaisanTeikyo2,IF(nKenShu=4, comtDaisanTeikyo3,\"\"))))","v":"　生データのみならず加工、分析後のデータを第３者に公開・提供する場合も、１．を選択して下さい。受託者内でのデータ共有や、論文発表だけの場合は２．を選択してください。\n　第３者提供を計画される場合、事前同意書や公示パネルに第３者提供する旨の記載が必要です。また、その提供先が決まっている場合は、提供先の記載が必要です。可能ならば、第３者提供の目的において公共性（公共の利益）を明記されることを薦めます。"}]
[null,"データの取得主体以外（いわゆる第三者）に対するデータの提供・公開（論文発表を除く）"]
[null,"選択してください",null," 第三者に対するデータの提供・公開の予定はない（加工・分析後のデータを含む）",null,null,null,null,null,null,"３．未定だが公開の可能性がある",{"$f":"IF(nKenShu=1,\"<--\",IF(nKenShu=2, \"<--\",IF(nKenShu=3, \"<--\",IF(nKenShu=4, \"<--\",\"\"))))","v":"<--"}]
[null,"提供または公開を予定している場合"]
[null,{"$f":"IF(OR(K73=\"１．公開・提供の予定あり\",K73=\"３．未定だが公開の可能性がある\"),\"第三者に対するデータの提供・公開に関する項目。記載してください。\",IF(K73=\"２．公開・提供の予定なし\", \"記載は不要です \",\"\"))","v":"第三者に対するデータの提供・公開に関する項目。記載してください。"},null,"　　　第三者に対するデータの提供または公開は、本人の同意を得た範囲を超えて行わない",null,null,null,null,null,null,"〇"]
[null,null,null,"　　　提供又は公開するデータ",null,"映像データ（ビデオデータ）、感情に関するアンケート",null,null,null,null,null,"<--","匿名加工情報や匿名化という専門用語は、理解したうえで使うか、使わないでください。例えば、「個人を特定できないように○○の処理を施した○○」などと表記してください。"]
[null,null,null,"　　　提供又は公開先",null,"未定（例えば公的データベースなど）"]
[null,null,null,"　　　提供又は公開する目的",null,"多くのジャーナルでデータ公開が求められるため。\nコンピュータビジョンの発展という公共の利益のため。"]
[null,null,null,"　　　データの提供、公開に当たり、データの利用目的や利用者、利用手続き等が明確化されている",null,null,null,null,null,null,"○"]
[null,null,null,"データの提供先とは、利用目的の範囲内で利用する、セキュリティを確保する、個人特定を禁止する、本人の同意なく機微な内容を推定する分析を禁止する、等を含む契約を結ぶ",null,null,null,null,null,null,"○"]
[]
[null,"データの廃棄",null,null,null,null,null,null,null,null,null,null,"データ取得前までにデータの保管期間を定めることが難しい場合には、×を選択し、理由と処置を備考欄に記載してください。例えば、保管期間を定めることが難しいことをあらかじめ同意書等に記載するなどが処置としてあげられます。"]
[null,"　１）　データの利用期間・保持期間を設定し、データ取得前か後に、本人からその内容について同意取得（又は通知・公表）を行う。",null,null,null,null,null,null,null,null,"○","<--"]
[null,"利用期間・保持期間（年月日）",null,null,"2020-10-01",null,"から","2022年3月31日\n(備考欄に追記あり）",null,"まで",null,{"$f":"IF(nKenShu=2,\"<--\",IF(nKenShu=5,\"\",\"<--\"))","v":"<--"},{"$f":"IF(nKenShu=2,comtRiyouKikan0,IF(nKenShu=5,\"\",comtRiyouKikan1))","v":"委託研究では、パーソナルデータを含むデータは研究終了時に破棄、パーソナルデータを含まないデータは１０年間の保管をお願いしています。\n論文発表や研究内容に応じた期間変更は可能ですが、同意書及び公示ポスター等に、データ利用期間・保持期間を明記いただくと同時に、委託研究の年度別実施計画書と齟齬がないように注意ください。\n"}]
[null,"　２）　利用期間・保持期間終了時のデータの取り扱いに関して、データ取得前か後に、同意取得（又は通知・公表）を行う。",null,null,null,null,null,null,null,null,"○"]
[null,"終了時の取り扱い方法",null,null,"データ消去ツールでデータを確実に削除し、データ削除のログデータを取得しておく。"]
[]
[null,"倫理委員会の承認状況（人体あるいは動物に対する実験）"]
[null,"１．人体あるいは動物に対する実験は行わない　　２．実験を行う予定であり、倫理委員会の承認を受けている　　３．実験を行う予定で、今後倫理委員会の承認を受ける予定である　　　×　（実験を行う予定だが、倫理委員会の承認を受ける予定はない）",null,null,null,null,null,null,null,null,"１．実験は行わない"]
[null,{"$f":"IF(K89=\"選択して下さい\",\"\",IF(K89=\"１．実験は行わない\",\"記載は不要です\",IF(K89=\"×（承認を受ける予定はない）\",\"記載は不要です\",\"記載してください\")))","v":"記載は不要です"},null,"倫理委員会の設置機関、倫理委員会の名称及び研究課題名",null,null,null,null,"承認（予定）日","◯◯◯◯年○○月○○日"]
[]
[null,"委員会からの「パーソナルデータ取扱研究開発に対するリスク評価結果」への回答"]
[null,"委員会からの「パーソナルデータ取扱研究開発に対するリスク評価結果」に、以前にコメントはあったか\n１．初回の申請であるため上記リスク評価結果がない　　２．コメントがあった　　３．コメントはなかった",null,null,null,null,null,null,null,null,"１．初回の申請であるため・・・"]
[null,{"$f":"IF(K93=\"選択して下さい\",\"\",IF(K93=\"２．コメントがあった\",\"記載してください\",\"記載は不要です\"))","v":"記載は不要です"},null,"コメント、及びコメントへの回答",null,"■コメント\n　○○○○○○\n■コメントへの回答\n　○○○○○○\n"]
[]
[null,"備考\n\n追加説明情報を記載してください。\n少なくとも、チェックの結果が×とした項目については理由を記載してください。\n",null,null,"■データの廃棄について\n　A株式会社は、2022年3月31日までにデータを削除する。\n　B大学とC大学は、ジャーナルに投稿して採択されるまでデータは廃棄しない。また、ジャーナルからデータの公開指示があった場合には公開し、この場合は廃棄期日（公開終了日）は定めない。\n　以上について本人に説明して同意を取得する。",null,null,null,null,null,null,"<--","\n第３者提供は、適切なる説明（事前同意やポスター公示）などが必要です。\n外部機関のプライバシーポリシー（Twitterや携帯キャリアなど）に準拠する場合は、その機関名を明記いただくとともに補足資料として規約やプライバーポリシーを準備ください。\n日欧・日米共同公募の場合、データの海外移送が想定されますが、海外機関との適切な契約と、被験者に対する説明が必要です。\n\n＜倫理委員会審査情報の記入のお願い＞\n所属機関における個人情報等の倫理委員会で審査を予定されている、又は審査を実施した場合、倫理委員会名称と実施時期と審査結果（実施済の場合）を記載ください。\nまた審査結果の通知がある場合、資料をご準備ください。\n"]
[]
[]
[null,"ここからは文章の記載"]
[null,"【様式１】への「パーソナルデータ取扱研究開発に対するリスク評価結果」に付与されたID[*]を記入してください。\n  [*] D_12345_190101_01形式 または 0001_FY19_01234形式のID"]
[null,"スタート☛           プルダウンより選択して下さい（右の矢印より選択してください）"]
[null,"自ら研究（運営費交付金を用いて機構内で行うもの）"]
[null,"委託研究（革新的情報通信技術研究開発委託研究）"]
[null,"受託研究・研究助成金による研究（外部機関から研究開発費用提供・助成を受けて行うもの）"]
[null,"共同研究（外部研究機関と共同で行うもの）"]
[null,"テストベッド利用研究（ＮＩＣＴ総合テストベッド利用規約および共同研究契約に基づいて行うもの）"]
[]
[null,"課題名、課題番号または個別課題番号、提案課題を記載ください。\n　　　・課題名：＊＊＊ネットワーク基盤の研究開発\n　　　・課題番号または個別課題番号：195／195A\n　　　・提案課題：＊＊＊の研究開発"]
[null,"委託研究における課題名と採択番号と副題とを記載ください。\n（例）・課題名：＊＊＊利活用・基盤技術の研究開発\n　　　・採択番号：195A05\n　　　・副題：＊＊＊を実現する＊＊＊予測技術の研究開発"]
[null,"研究計画中での審議（プロセス１、様式１）から変更になった場合には、新しい研究開発課題名に加えて、様式１に記載した研究開発課題名も\n「（旧）○○○○○○○○」と記入してください。"]
[null,"研究プロジェクトテーマ名（日本語）を記載してください。"]
[null,"NICT総合テストベッド研究計画書の研究プロジェクトテーマ名（日本語）を記入してください。研究計画中での審議（プロセス1、様式1）から変更になった場合には、新しい研究プロジェクトテーマ名に加えて、様式1に記載した研究プロジェクトテーマ名も「（旧）〇〇〇〇〇〇〇」と記入してください。"]
[null,"開始には文字列で「委託研究契約日」、終了（予定）には研究終了を予定している日にちを西暦で記入してください。和歴は自動入力されま\nす。"]
[null,"委託研究契約の契約日／終了予定日を西暦で記入してください。和歴は自動入力されます。"]
[null,"NICT総合テストベッド研究計画書の利用スケジュールを西暦で記入してください。和歴は自動入力されます。"]
[null,"委託研究計画書における研究概要文を流用いただいても結構です。"]
[null,"NICT総合テストベッド研究計画書の研究目的、研究内等に基づき記入してください。"]
[null,"上記概要（目的、計画、方法）の中で、パーソナルデータを取り扱うことで、研究全体の中で、どのような成果が期待できるか、パーソナルデータを取り扱う目的と必要性を、できる限り具体的に記載ください。"]
[null,"委託研究では、パーソナルデータを含むデータは研究終了時に破棄、パーソナルデータを含まないデータは１０年間の保管をお願いしています。\n論文発表や研究内容に応じた期間変更は可能ですが、同意書及び公示ポスター等に、データ利用期間・保持期間を明記いただくと同時に、委託研究の年度別実施計画書と齟齬がないように注意ください。\n"]
[null,"「情報通信研究機構研究資料等の保存及び管理に関するガイドライン」により、研究資料は論文等を発表してから原則として10年間の保管を求められますので注意してください。"]
[null,"本人から同意を取得する（○）か否（×）かを選択してください。\n　・同意書は、データの利用目的を適切に限定することが必要です。\n　・同意書は、取得するパーソナルデータを使用するすべての研究機関が使用し、論文発表を含む学術目的である旨の同意を取得してください。\n　・取得するパーソナルデータ（加工、分析データを含む）の第３者提供を予定する場合、その旨の同意を取得してください。\n　・否（×）の場合、備考欄に理由を記載してください。その際、利用目的や処理内容などについて本人に事前告知や通知をする方法と内容を、できるだけ具体的に記載してください。"]
[null,"・取得主体を全て記載ください。Ａ社が取得したものを共同研究先のB社に提供する場合はA社を、A社とB社が共同で取得する場合にはA社とB社を記載してください。既にあるデータの場合、そのデータを取得した機関を記載してください。\n　　例1： NICT, A社, B社。　例2： NICT。\n・C社（例えばNICT）がD社に業務委託してデータを取得する場合には、C社を記載して業務委託先も記載してください。\n　　例3： C社（取得作業はC社からD社に業務委託する）。"]
[null,"・取得主体を全て記載ください。Ａ大学が取得したものを共同研究先のB社に提供する場合はA大学を、A大学とB社が共同で取得する場合にはA大学とB社を記載してください。既にあるデータの場合、そのデータを取得した機関を記載してください。\n・C社（例えばNICT）がD社に業務委託してデータを取得する場合には、C社(例えばNICT)を記載して業務委託先も記載してください。\n　　例3： C社（取得作業はD社に業務委託）"]
[null,"全受託者及びNICTのうち、実際に保管する受託者を記入してください。"]
[null,"委託を受ける全機関のうち、実際に保管する機関を記入してください。"]
[null,"共同研究機関のうち、実際に保管する機関を記入してください。"]
[null,"NICTと記入してください。"]
[null,"実際にデータをサーバ等に書込む作業や、その後の維持・管理作業を行う機関を記入してください。"]
[null,"全受託者及びNICTのうち、実際に利用する受託者（データを受け取るだけの受託者を含む）を記入してください。"]
[null,"委託を受ける全機関のうち、実際に利用する機関（データを受け取るだけの機関を含む）を記入してください。"]
[null,"共同研究機関のうち、実際に利用する機関（データを受け取るだけの機関を含む）を記入してください。"]
[null,"NICTと記入してください。"]
[null,"実際にデータを利用する機関を記入してください。"]
[null,"機関により利用するデータが異なる場合は、個々の機関がどのようなデータを利用するか分かるように記載してください。加工したデータを利用する場合、どのような加工か分かるように（備考欄でもかまいませんので）記載してください。"]
[null,"機関により利用するデータが異なる場合は、個々の機関がどのようなデータを利用するか分かるように記載してください。加工したデータを利用する場合、どのような加工か分かるように（備考欄でもかまいませんので）記載してください。"]
[null,"機関により利用するデータが異なる場合は、個々の機関がどのようなデータを利用するか分かるように記載してください。加工したデータを利用する場合、どのような加工か分かるように（備考欄でもかまいませんので）記載してください。"]
[]
[null,"機関により利用するデータが異なる場合は、個々の機関がどのようなデータを利用するか分かるように記載してください。加工したデータを利用する場合、どのような加工か分かるように（備考欄でもかまいませんので）記載してください。"]
[null,"　生データのみならず加工、分析後のデータを第３者に公開・提供する場合も、１．を選択して下さい。論文発表だけの場合は２．を選択してください。\n　第３者提供を計画される場合、事前同意書や公示パネルに第３者提供する旨の記載が必要です。また、その提供先が決まっている場合は、提供先の記載が必要です。可能ならば、第３者提供の目的において公共性（公共の利益）を明記されることを薦めます。"]
[null,"　生データのみならず加工、分析後のデータを第３者に公開・提供する場合も、１．を選択して下さい。受託者内でのデータ共有や、論文発表だけの場合は２．を選択してください。\n　第３者提供を計画される場合、事前同意書や公示パネルに第３者提供する旨の記載が必要です。また、その提供先が決まっている場合は、提供先の記載が必要です。可能ならば、第３者提供の目的において公共性（公共の利益）を明記されることを薦めます。"]
[null,"　生データのみならず加工、分析後のデータを第３者に公開・提供する場合も、１．を選択して下さい。委託を受けた機関内でのデータ共有や、論文発表だけの場合は２．を選択してください。\n　第３者提供を計画される場合、事前同意書や公示パネルに第３者提供する旨の記載が必要です。また、その提供先が決まっている場合は、提供先の記載が必要です。可能ならば、第３者提供の目的において公共性（公共の利益）を明記されることを薦めます。"]
[null,"　生データのみならず加工、分析後のデータを第３者に公開・提供する場合も、１．を選択して下さい。共同研究機関内でのデータ共有や、論文発表だけの場合は２．を選択してください。\n　第３者提供を計画される場合、事前同意書や公示パネルに第３者提供する旨の記載が必要です。また、その提供先が決まっている場合は、提供先の記載が必要です。可能ならば、第３者提供の目的において公共性（公共の利益）を明記されることを薦めます。"]
[null,"　"]
[null,"研究代表者が外部機関の場合、代表研究者とNICTに所属する研究分担者1名をご記入下さい。"]
[null,"NICT総合テストベッド研究計画書の連絡窓口を記入してください。"]
[null,"ここからは条件判定の記載"]
[null,{"$f":"IF(B3=\"研究計画中(委員会にて様式1で審議する段階。プロセス1)\",1,IF(B3=\"研究実施前(委員会にて様式2で審議する段階。プロセス3)\",2,0))","v":1},"様式：　様式１だと\"1\"、様式2だと\"2\""]
[null,{"$f":"IF(txtKenShu=txtKenShuMizukara,1,IF(txtKenShu=txtKenShuItaku,2,IF(txtKenShu=txtKenShuJutaku,3,IF(txtKenShu=txtKenShuKyoudou,4,IF(txtKenShu=txtKenShuTestbed,5,0)))))","v":2},"研究種別：　スタートだと0, 自ら研究だと1, 委託研究だと2, 受託研究だと3, 共同研究だと4, テストベッド利用研究だと5"]